bitfinex/quotes_SOLUSD_20260119
["timestamp","ask_amount","ask_price","bid_price","bid_amount"]
[1768781013108,83.54608127,133.0,132.87,9.43957614]
[1768781013315,83.54608127,133.0,132.95,9.43957614]
[1768781013512,1e-08,133.0,132.98,7.5199278]
[1768781013713,18.77508525,133.16,132.99,9.43957614]
[1768781014021,31.17805769,133.11,133.01,9.43957614]
[1768781014196,31.17805769,133.11,132.98,9.43957614]
[1768781014399,9.43957614,133.06,132.92,18.80773391]
[1768781014600,4.48939412,133.04,132.94,7.5219322]
[1768781014927,0.2,133.03,132.96,7.52096968]
[1768781015101,0.2,133.03,132.97,16.95985066]
[1768781015296,4.48939412,133.1,132.97,7.52027452]
[1768781015500,4.48939412,133.1,133.01,7.51823171]
[1768781015712,4.48939412,133.07,132.95,18.80324591]
[1768781015916,4.48939412,133.01,132.89,18.81214205]
[1768781016106,4.48939412,133.0,132.89,5.34408856]
[1768781016298,4.48939412,133.05,132.93,5.34408856]
[1768781016621,4.48939412,133.05,132.98,9.43957614]
[1768781016796,4.48939412,133.01,132.9,7.52445447]
[1768781017135,4.48939412,133.06,132.97,5.34408856]
[1768781017300,23.66527242,133.11,132.97,5.34408856]
[1768781017510,11.95872334,133.09,132.98,7.5196188]
[1768781017732,4.44479759,133.09,133.0,9.43957614]
[1768781018027,4.44479759,133.06,132.9,37.62227238]
[1768781018328,9.43957614,133.07,132.9,37.62227238]
[1768781018329,28.11007001,133.11,132.99,9.43957614]
[1768781018527,23.66527242,133.11,133.02,5.34408856]
[1768781018697,4.44479759,133.1,132.98,7.51979073]
[1768781019028,4.44479759,133.1,133.04,9.28438938]
[1768781019216,37.6357077,133.21,132.98,26.31961025]
[1768781019523,46.58698805,133.12,132.83,1.96950044]
[1768781019729,37.72040929,133.1,132.84,18.81963264]
[1768781019944,9.28438938,132.98,132.84,18.81963264]
[1768781020224,9.28438938,132.91,132.71,25.63477286]
[1768781020399,37.19875678,132.99,132.71,8.18513037]
[1768781020594,16.44,133.0,132.76,9.28438938]
[1768781020595,37.90365447,132.98,132.76,9.28438938]
[1768781020815,9.28438938,132.94,132.83,9.28438938]
[1768781021019,43.18634795,133.06,132.76,1.96950044]
[1768781021217,9.28438938,132.88,132.78,9.28438938]
[1768781021414,4.44479759,132.86,132.76,9.28438938]
[1768781021628,4.44479759,132.96,132.83,9.28438938]
[1768781021933,7.51643997,133.05,132.92,9.28438938]
[1768781022102,9.28438938,133.02,132.93,9.28438938]
[1768781022301,4.44479759,133.02,132.91,9.28438938]
[1768781022501,4.44479759,133.08,132.97,9.28438938]
[1768781022700,4.44479759,133.08,132.88,1.96950044]
[1768781022913,4.44479759,133.02,132.9,5.34408856]
[1768781023099,26.30027608,133.08,132.96,9.28438938]
[1768781023296,37.54719802,133.17,132.85,37.81662361]
[1768781023297,7.51368743,133.1,132.85,37.81662361]
[1768781023519,4.44479759,133.19,133.02,9.28438938]
[1768781023730,4.44479759,133.24,133.1,9.28438938]
[1768781023900,13.72918697,133.24,133.13,9.28438938]
[1768781024101,4.44479759,133.24,133.12,9.28438938]
[1768781024297,4.44479759,133.24,133.03,26.30985491]
[1768781024298,7.5030012,133.28,133.16,9.28438938]
[1768781024503,0.4466932,133.29,133.22,9.28438938]
[1768781024705,4.44479759,133.39,133.28,9.28438938]
[1768781024706,9.28438938,133.38,133.28,9.28438938]
[1768781024900,26.24194163,133.38,133.28,9.28438938]
[1768781025103,7.49680519,133.4,133.29,9.28438938]
[1768781025323,6.09690505,133.53,133.29,9.28438938]
[1768781025324,37.00813795,133.54,133.29,4.06050265]
[1768781025531,4.44479759,133.52,133.38,9.28438938]
[1768781025712,9.28438938,133.48,133.35,7.49903575]
[1768781025908,4.44479759,133.51,133.38,7.49728202]
[1768781026221,7.48568667,133.59,133.5,9.28438938]
[1768781026405,11.92590778,133.67,133.49,4.06050265]
[1768781026721,4.44479759,133.61,133.5,9.28438938]
[1768781026931,9.28438938,133.52,133.38,11.55778467]
[1768781027233,4.44479759,133.53,133.42,9.28438938]
[1768781027439,4.44479759,133.58,133.4,9.28438938]
[1768781027638,9.28438938,133.5,133.37,11.55793058]
[1768781027954,4.44479759,133.53,133.37,7.49742793]
[1768781028412,4.44479759,133.53,133.32,9.40459121]
[1768781028601,4.44479759,133.51,133.32,4.06050265]
[1768781028799,7.48671108,133.57,133.41,4.06050265]
[1768781029033,26.19564403,133.61,133.41,4.06050265]
[1768781029327,7.48446972,133.61,133.49,9.28438938]
[1768781029504,4.44479759,133.79,133.59,9.28438938]
[1768781029707,26.17605264,133.71,133.62,9.28438938]
[1768781030029,13.72918697,133.67,133.57,9.28438938]
[1768781030217,4.44479759,133.64,133.46,4.06050265]
[1768781030526,4.44479759,133.7,133.55,9.28438938]
[1768781030708,4.44479759,133.67,133.43,4.06050265]
[1768781030909,4.44479759,133.66,133.55,7.48783075]
[1768781031112,30.62085023,133.71,133.57,7.48639865]
[1768781031313,4.44479759,133.68,133.52,9.28438938]
[1768781031522,9.28438938,133.64,133.54,9.28438938]
[1768781031836,7.48111019,133.67,133.56,7.4870269]
[1768781032011,7.48111019,133.67,133.6,9.28438938]
[1768781032217,30.26793256,133.72,133.63,9.28438938]
[1768781032536,39.55232194,133.72,133.63,9.28438938]
[1768781032743,22.78940858,133.72,133.58,4.33982386]
[1768781033242,22.78940858,133.72,133.59,9.68391242]
[1768781033431,22.78940858,133.72,133.6,4.33982386]
[1768781033612,17.4207512,133.72,133.7,9.28438938]
[1768781033812,11.89611554,133.84,133.7,9.28438938]
[1768781034026,39.85952464,133.84,133.75,9.28438938]
[1768781034222,9.28438938,133.82,133.75,9.28438938]
[1768781034413,9.28438938,133.82,133.68,63.58437535]
[1768781034414,4.42450765,133.89,133.68,68.92846391]
[1768781034734,11.89568457,133.85,133.68,26.18162251]
[1768781034945,4.42450765,133.83,133.73,9.28438938]
[1768781035272,9.28438938,133.81,133.73,9.28438938]
[1768781035537,4.42450765,133.8,133.6,9.28438938]
[1768781035741,4.42450765,133.85,133.72,9.28438938]
[1768781035924,7.47104968,133.85,133.71,26.17600416]
[1768781036128,4.42450765,133.85,133.6,37.33147999]
[1768781036425,5.34408856,133.83,133.71,16.76325457]
[1768781036626,5.34408856,133.83,133.6,9.28438938]
[1768781036939,31.01796127,133.86,133.71,7.47882153]
[1768781037243,12.34173238,133.86,133.71,26.17600199]
[1768781037548,4.42450765,133.85,133.68,18.70099386]
[1768781037745,4.42450765,133.83,133.75,9.28438938]
[1768781037937,4.42450765,133.83,133.7,18.69782221]
[1768781038249,4.42450765,133.83,133.58,37.43048802]
[1768781038250,9.28438938,133.72,133.58,37.43048802]
[1768781038559,4.42450765,133.75,133.65,9.28438938]
[1768781038861,4.42450765,133.83,133.69,9.28438938]
[1768781039035,4.42450765,133.8,133.63,5.34408856]
[1768781039237,4.42450765,133.75,133.65,9.28438938]
[1768781039436,9.28438938,133.7,133.64,9.28438938]
[1768781039650,16.34,133.8,133.64,9.28438938]
[1768781039651,4.42450765,133.78,133.69,9.28438938]
[1768781039955,9.28438938,133.76,133.64,18.70691108]
[1768781040135,4.42450765,133.78,133.66,9.28438938]
[1768781040450,9.28438938,133.69,133.62,9.28438938]
[1768781040653,9.28438938,133.7,133.61,7.48391873]
[1768781040848,4.42450765,133.75,133.67,9.28438938]
[1768781041040,9.28438938,133.77,133.6,9.28438938]
[1768781041235,23.81386453,133.8,133.72,9.28438938]
[1768781041440,23.81386453,133.8,133.73,9.28438938]
[1768781041624,23.10614513,133.83,133.76,9.28438938]
[1768781041825,7.47104968,133.85,133.76,9.28438938]
[1768781042139,0.4466932,133.86,133.74,7.477106]
[1768781042140,0.4466932,133.86,133.74,26.17009239]
[1768781042323,4.42450765,133.85,133.77,9.28438938]
[1768781042531,4.42450765,133.82,133.72,7.47784534]
[1768781042725,13.70889703,133.77,133.63,37.41586638]
[1768781043037,4.42450765,133.77,133.67,7.48066323]
[1768781043255,4.42450765,133.77,133.6,7.48502994]
[1768781043543,9.28438938,133.69,133.6,7.48502994]
[1768781043736,4.42450765,133.71,133.5,26.21722846]
[1768781043938,9.28438938,133.63,133.5,26.21722846]
[1768781044138,5.34408856,133.69,133.5,26.21722846]
[1768781044139,4.42450765,133.62,133.5,26.21722846]
[1768781044448,100.69276274,133.72,133.59,9.28438938]
[1768781044449,67.99016723,133.72,133.59,9.28438938]
[1768781044651,30.59860277,133.72,133.5,63.67041198]
[1768781044850,4.42450765,133.71,133.5,63.67041198]
[1768781045055,18.69213889,133.75,133.65,9.28438938]
[1768781045346,4.42450765,133.74,133.65,9.28438938]
[1768781045550,26.1687744,133.75,133.62,9.28438938]
[1768781045551,13.70889703,133.7,133.62,9.28438938]
[1768781045743,9.28438938,133.66,133.59,9.28438938]
[1768781046049,4.42450765,133.69,133.5,37.45318352]
[1768781046250,4.42450765,133.67,133.56,18.71693966]
[1768781046443,4.42450765,133.62,133.5,37.45318352]
[1768781046649,26.14867388,133.85,133.57,7.48671108]
[1768781046829,26.14867388,133.85,133.69,9.28438938]
[1768781047030,63.80481857,133.85,133.59,9.68391242]
[1768781047260,63.50392229,133.85,133.62,9.28438938]
[1768781047452,63.50392229,133.85,133.7,9.28438938]
[1768781047761,4.42450765,133.8,133.65,26.18780396]
[1768781047960,4.42450765,133.8,133.65,26.03808396]
[1768781048136,9.28438938,133.73,133.63,7.48304056]
[1768781048337,4.42450765,133.75,133.45,37.50150941]
[1768781048530,4.42450765,133.75,133.61,9.28438938]
[1768781048531,13.70889703,133.68,133.61,9.28438938]
[1768781048744,4.42450765,133.74,133.64,7.4827861]
[1768781048945,4.42450765,133.79,133.64,26.18976005]
[1768781049146,4.42450765,133.79,133.72,9.28438938]
[1768781049356,30.57708928,133.83,133.64,26.18976005]
[1768781049541,4.42450765,133.76,133.64,7.4827861]
[1768781049750,4.42450765,133.81,133.64,56.1689394]
[1768781049939,23.10339683,133.85,133.68,4.33982386]
[1768781050283,4.42450765,133.84,133.77,9.28438938]
[1768781050462,7.91729626,133.86,133.71,4.33982386]
[1768781050641,4.42450765,133.85,133.75,9.28438938]
[1768781050844,0.4466932,133.86,133.79,9.28438938]
[1768781051042,16.32,133.93,133.82,9.28438938]
[1768781051240,0.2,133.95,133.82,5.34408856]
[1768781051439,0.2,133.95,133.9,9.28438938]
[1768781051634,4.62450765,133.95,133.8,5.34408856]
[1768781051851,9.28438938,133.97,133.9,9.28438938]
[1768781052152,9.28438938,134.01,133.86,5.34408856]
[1768781052448,7.46181691,134.02,133.9,5.34408856]
[1768781052645,30.56280176,134.03,133.91,9.04535301]
[1768781052880,37.27712678,134.14,133.85,9.14063081]
[1768781052881,0.4466932,134.15,134.03,3.70126445]
[1768781053166,0.4466932,134.15,134.02,3.70126445]
[1768781053457,4.42450765,134.24,134.12,9.28438938]
[1768781053635,4.42450765,134.24,134.14,9.28438938]
[1768781053836,7.45100961,134.21,134.09,18.64351467]
[1768781054058,9.28438938,134.14,134.01,0.24285895]
[1768781054240,13.70889703,134.1,134.01,0.24285895]
[1768781054442,4.42450765,134.1,133.92,3.70126445]
[1768781054645,4.42450765,134.1,133.96,5.34408856]
[1768781054861,4.42450765,134.1,133.9,25.66126445]
[1768781055051,9.28438938,134.07,133.97,9.28438938]
[1768781055247,16.3,134.19,134.03,9.28438938]
[1768781055248,4.42450765,134.18,134.03,9.28438938]
[1768781055462,4.42450765,134.18,134.05,9.28438938]
[1768781055641,4.42450765,134.18,134.06,9.28438938]
[1768781055841,4.42450765,134.16,133.99,3.70126445]
[1768781056167,4.42450765,134.16,134.01,5.34408856]
[1768781056343,18.63012884,134.2,134.08,9.28438938]
[1768781056544,4.42450765,134.18,134.01,18.65532422]
[1768781056754,4.42450765,134.11,134.02,9.28438938]
[1768781056957,4.42450765,134.11,134.0,9.28438938]
[1768781057262,7.45212012,134.19,134.08,9.28438938]
[1768781057466,4.42450765,134.21,134.06,9.04535301]
[1768781057467,11.87557031,134.21,134.06,9.04535301]
[1768781057795,9.28438938,134.16,134.08,9.28438938]
[1768781058065,4.42450765,134.2,134.06,7.61506705]
[1768781058262,4.42450765,134.2,134.13,9.28438938]
[1768781058469,30.50120702,134.22,134.07,3.70126445]
[1768781058658,4.42450765,134.17,134.06,7.61506705]
[1768781058868,11.87507083,134.22,134.12,9.28438938]
[1768781059067,11.87268614,134.27,134.1,3.70126445]
[1768781059271,9.28438938,134.24,134.15,9.28438938]
[1768781059466,4.42450765,134.26,134.1,3.70126445]
[1768781059661,4.42450765,134.26,134.11,9.04535301]
[1768781059966,9.28438938,134.23,134.14,9.28438938]
[1768781060166,4.42450765,134.22,134.11,16.74089304]
[1768781060479,7.44833635,134.26,134.17,9.28438938]
[1768781060764,9.28438938,134.24,134.12,3.70126445]
[1768781060948,4.42450765,134.25,134.11,7.45650366]
[1768781061156,26.06892327,134.26,134.14,9.28438938]
[1768781061352,4.42450765,134.33,134.16,3.70126445]
[1768781061551,16.72874283,134.33,134.25,9.28438938]
[1768781061747,23.11354475,134.34,134.24,16.73331489]
[1768781061948,30.55770763,134.34,134.24,16.73331489]
[1768781062170,4.42450765,134.33,134.18,40.96261469]
[1768781062472,23.11354475,134.34,134.3,9.28438938]
[1768781062798,9.4702814,134.42,134.34,0.22331885]
[1768781062948,9.28438938,134.41,134.34,0.22331885]
[1768781063148,2.03052769,134.42,134.35,9.28438938]
[1768781063343,0.4466932,134.43,134.34,0.22331885]
[1768781063555,9.28438938,134.42,134.34,0.22331885]
[1768781063750,9.28438938,134.4,134.34,0.22331885]
[1768781063964,0.4466932,134.43,134.35,9.28438938]
[1768781064150,16.26,134.49,134.39,9.28438938]
[1768781064472,16.26,134.53,134.38,1.77420944]
[1768781064768,9.28438938,134.44,134.34,7.66696689]
[1768781065069,9.28438938,134.41,134.34,0.22331885]
[1768781065273,4.25143033,134.5,134.36,9.28438938]
[1768781065469,4.25143033,134.62,134.44,5.34408856]
[1768781065681,4.25143033,134.61,134.5,9.28438938]
[1768781065851,4.25143033,134.59,134.42,5.34408856]
[1768781066155,4.25143033,134.59,134.47,9.28438938]
[1768781066156,9.28438938,134.58,134.47,9.28438938]
[1768781066358,4.25143033,134.63,134.44,5.34408856]
[1768781066750,9.28438938,134.58,134.41,63.2393423]
[1768781066951,13.53581971,134.56,134.44,5.34408856]
[1768781067151,20.51143033,134.55,134.44,9.28438938]
[1768781067363,16.26,134.55,134.49,9.28438938]
[1768781067656,4.25143033,134.52,134.42,9.28438938]
[1768781067972,4.25143033,134.5,134.39,7.44092429]
[1768781068147,9.28438938,134.5,134.42,9.28438938]
[1768781068351,16.24,134.52,134.33,1.77420944]
[1768781068668,9.28438938,134.44,134.36,9.28438938]
[1768781068873,16.24,134.52,134.37,18.60477934]
[1768781068874,9.28438938,134.46,134.37,18.60477934]
[1768781069073,9.28438938,134.56,134.33,1.77420944]
[1768781069074,25.52438938,134.5,134.44,7.43809855]
[1768781069272,16.24,134.5,134.33,1.77420944]
[1768781069475,21.58408856,134.5,134.35,9.28438938]
[1768781069777,7.4272133,134.64,134.49,9.28438938]
[1768781069978,37.06328684,134.62,134.47,9.28438938]
[1768781070185,7.4272133,134.64,134.52,9.28438938]
[1768781070481,16.24,134.66,134.51,4.25143033]
[1768781070684,30.15259265,134.65,134.55,9.28438938]
[1768781070886,22.72561283,134.65,134.6,9.28438938]
[1768781071289,9.28438938,134.61,134.52,9.28438938]
[1768781071463,26.97704316,134.65,134.57,9.28438938]
[1768781071787,11.67919531,134.63,134.49,26.02423971]
[1768781071995,22.72561283,134.65,134.62,9.28438938]
[1768781072162,0.4466932,134.72,134.64,9.28438938]
[1768781072362,4.25143033,134.71,134.53,5.34408856]
[1768781072571,3.50236591,134.71,134.56,9.28438938]
[1768781072772,0.4466932,134.72,134.7,9.28438938]
[1768781072977,0.4466932,134.72,134.59,0.74906442]
[1768781073289,0.4466932,134.72,134.66,9.28438938]
[1768781073497,16.22,134.71,134.66,9.28438938]
[1768781073794,9.28438938,134.7,134.58,26.00683607]
[1768781073974,0.4466932,134.72,134.67,9.28438938]
[1768781074168,15.47093558,134.74,134.71,9.28438938]
[1768781074487,0.2,134.82,134.73,9.28438938]
[1768781074664,9.28438938,134.81,134.66,5.34408856]
[1768781074985,4.25143033,134.81,134.75,9.28438938]
[1768781075169,0.2,134.82,134.77,9.28438938]
[1768781075366,13.53581971,134.78,134.58,100.31208201]
[1768781075571,4.25143033,134.71,134.58,26.00683607]
[1768781075877,11.67242123,134.76,134.68,9.28438938]
[1768781076072,22.79751872,134.8,134.7,9.28438938]
[1768781076275,20.47143033,134.79,134.67,7.42516136]
[1768781076489,20.47143033,134.79,134.73,9.28438938]
[1768781076691,13.53581971,134.79,134.72,9.28438938]
[1768781076871,4.25143033,134.79,134.72,9.28438938]
[1768781077066,4.25143033,134.79,134.67,25.98905829]
[1768781077475,7.61732411,134.82,134.67,25.98905829]
[1768781077476,0.2,134.82,134.68,5.34408856]
[1768781077796,0.2,134.82,134.59,37.62953651]
[1768781077797,13.53714411,134.76,134.7,7.42390497]
[1768781077992,4.25275473,134.8,134.69,25.9855001]
[1768781078285,4.25275473,134.69,134.63,16.71210217]
[1768781078585,4.25275473,134.66,134.62,9.28438938]
[1768781078789,16.2,134.71,134.52,4.25275473]
[1768781078986,16.2,134.71,134.62,9.28438938]
[1768781079177,16.2,134.7,134.64,9.28438938]
[1768781079363,37.02206032,134.79,134.59,5.34408856]
[1768781079566,9.28438938,134.7,134.63,7.42765603]
[1768781079788,5.34408856,134.76,134.67,9.28438938]
[1768781079789,9.28438938,134.73,134.67,9.28438938]
[1768781079988,9.28438938,134.68,134.6,7.42896339]
[1768781080192,37.8062619,134.86,134.67,7.42544077]
[1768781080364,16.2,134.76,134.6,4.25275473]
[1768781080565,9.28438938,134.74,134.67,9.28438938]
[1768781080771,4.25275473,134.71,134.52,4.25275473]
[1768781080965,4.25275473,134.71,134.54,30.0]
[1768781081280,16.2,134.76,134.54,7.43265617]
[1768781081281,4.25275473,134.64,134.54,7.43265617]
[1768781081487,4.25275473,134.62,134.52,18.58426289]
[1768781081679,4.25275473,134.62,134.54,9.06214615]
[1768781081994,4.25275473,134.59,134.56,9.06214615]
[1768781082297,4.25275473,134.6,134.48,18.58945943]
[1768781082468,4.25275473,134.6,134.47,11.68935768]
[1768781082677,16.2,134.6,134.48,4.25275473]
[1768781082880,16.2,134.63,134.61,0.22295727]
[1768781083071,20.7399083,134.68,134.61,9.06214615]
[1768781083268,16.2,134.67,134.62,9.06214615]
[1768781083503,4.25275473,134.68,134.61,9.06214615]
[1768781083676,4.25275473,134.68,134.55,4.25275473]
[1768781083988,13.31490088,134.68,134.55,4.25275473]
[1768781084195,11.67804255,134.68,134.58,18.57618425]
[1768781084394,4.25275473,134.65,134.51,13.19237483]
[1768781084571,4.25275473,134.61,134.54,9.06214615]
[1768781084772,4.25275473,134.58,134.43,4.25275473]
[1768781084970,4.25275473,134.58,134.46,63.21582625]
[1768781085193,4.25275473,134.61,134.47,4.25275473]
[1768781085398,4.25275473,134.59,134.55,9.06214615]
[1768781085586,4.25275473,134.59,134.46,67.46858098]
[1768781085780,4.25275473,134.63,134.56,9.06214615]
[1768781086095,4.25275473,134.59,134.51,7.43395437]
[1768781086395,25.99772361,134.63,134.5,18.58689464]
[1768781086396,30.25047834,134.63,134.5,18.58689464]
[1768781086691,9.06214615,134.59,134.45,0.1]
[1768781086997,5.34408856,134.61,134.45,0.1]
[1768781086998,9.06214615,134.55,134.45,0.1]
[1768781087196,4.25275473,134.54,134.45,7.53765425]
[1768781087496,4.25275473,134.54,134.48,9.06214615]
[1768781087674,4.25275473,134.54,134.45,7.53765425]
[1768781087675,4.25275473,134.57,134.45,26.13192721]
[1768781087875,4.25275473,134.51,134.45,0.1]
[1768781088176,4.25275473,134.53,134.46,9.06214615]
[1768781088388,11.68396077,134.57,134.45,0.1]
[1768781088572,4.25275473,134.57,134.54,0.22303411]
[1768781088770,4.25275473,134.56,134.45,5.44408856]
[1768781088990,4.25275473,134.56,134.45,0.1]
[1768781089296,16.2,134.59,134.52,9.06214615]
[1768781089597,11.68013139,134.64,134.57,9.06214615]
[1768781089978,16.2,134.67,134.6,9.06214615]
[1768781090189,7.4262088,134.66,134.57,7.43067063]
[1768781090377,4.25275473,134.65,134.46,4.26708175]
[1768781090572,4.25275473,134.64,134.44,8.9396201]
[1768781090778,4.25275473,134.56,134.5,7.43494423]
[1768781090974,4.25275473,134.6,134.52,9.06214615]
[1768781091199,4.25275473,134.64,134.57,9.06214615]
[1768781091374,16.48835495,134.66,134.51,4.26708175]
[1768781091572,16.48835495,134.66,134.5,68.54111456]
[1768781091573,13.31490088,134.58,134.5,16.49709038]
[1768781091801,25.9914843,134.66,134.5,16.49709038]
[1768781091802,9.06214615,134.61,134.53,9.06214615]
[1768781091980,11.68032893,134.64,134.56,9.06214615]
[1768781092296,4.25275473,134.58,134.47,37.18245388]
[1768781092502,4.25275473,134.58,134.5,7.43451378]
[1768781092707,4.17733473,134.56,134.49,7.43544058]
[1768781093020,16.2,134.58,134.5,9.06214615]
[1768781093301,9.06214615,134.54,134.46,9.06214615]
[1768781093482,5.34408856,134.55,134.45,0.1]
[1768781093681,5.34408856,134.53,134.39,9.06214615]
[1768781093995,26.01843591,134.52,134.39,7.44092221]
[1768781094297,7.43296068,134.54,134.46,9.06214615]
[1768781094501,9.06214615,134.51,134.43,9.06214615]
[1768781094679,5.34408856,134.53,134.43,9.06214615]
[1768781094877,9.06214615,134.51,134.43,9.06214615]
[1768781095181,20.37733473,134.58,134.5,9.06214615]
[1768781095385,16.2,134.58,134.56,9.06214615]
[1768781095585,16.2,134.64,134.49,4.14381385]
[1768781095788,25.26214615,134.64,134.57,9.06214615]
[1768781095995,7.42776498,134.63,134.57,9.06214615]
[1768781096297,4.17733473,134.62,134.54,9.06214615]
[1768781096481,16.2,134.64,134.6,9.06214615]
[1768781096687,4.17733473,134.63,134.5,30.16611867]
[1768781096877,13.23948088,134.63,134.5,30.16611867]
[1768781097198,9.06214615,134.7,134.62,7.06214615]
[1768781097501,7.42180207,134.74,134.68,9.06214615]
[1768781097700,7.42180207,134.74,134.61,4.14381385]
[1768781097999,4.17733473,134.79,134.73,9.06214615]
[1768781098204,4.37733473,134.82,134.68,4.14381385]
[1768781098377,4.17733473,134.81,134.68,4.14381385]
[1768781098580,4.17733473,134.77,134.64,67.27512696]
[1768781098781,9.06214615,134.74,134.67,9.06214615]
[1768781099082,4.17733473,134.79,134.65,4.14381385]
[1768781099501,4.17733473,134.78,134.57,0.74310767]
[1768781099700,4.17733473,134.69,134.64,9.06214615]
[1768781099903,4.17733473,134.73,134.68,9.06214615]
[1768781100081,4.17733473,134.68,134.55,18.5800902]
[1768781100282,4.17733473,134.63,134.53,7.43284886]
[1768781100498,4.17733473,134.68,134.55,7.43217756]
[1768781100802,4.17733473,134.68,134.62,9.06214615]
[1768781101005,4.17733473,134.68,134.55,7.43217756]
[1768781101306,20.37733473,134.72,134.65,9.06214615]
[1768781101508,7.42115027,134.75,134.68,9.06214615]
[1768781101711,16.2,134.8,134.7,4.14381385]
[1768781102004,0.2,134.82,134.75,9.06214615]
[1768781102206,26.16068295,134.82,134.7,4.14381385]
[1768781102392,4.17733473,134.81,134.7,9.06214615]
[1768781102594,4.17733473,134.81,134.69,9.06214615]
[1768781102792,4.17733473,134.72,134.57,4.14381385]
[1768781102992,4.17733473,134.67,134.53,4.14381385]
[1768781103192,4.17733473,134.63,134.56,16.49372872]
[1768781103390,16.2,134.69,134.55,9.06214615]
[1768781103608,16.2,134.69,134.52,4.14381385]
[1768781103905,9.06214615,134.67,134.56,7.43114115]
[1768781104205,7.42280285,134.72,134.57,4.14381385]
[1768781104410,7.42280285,134.72,134.57,4.88692152]
[1768781104586,9.06214615,134.65,134.53,22.72590988]
[1768781104786,16.2,134.67,134.49,4.14381385]
[1768781104991,16.2,134.67,134.54,7.43266386]
[1768781105186,9.06214615,134.61,134.44,4.14381385]
[1768781105393,9.06214615,134.56,134.5,7.43490544]
[1768781105603,4.17733473,134.59,134.49,7.4350262]
[1768781105884,9.06214615,134.54,134.46,20.64307196]
[1768781106094,4.17733473,134.53,134.42,4.14381385]
[1768781106305,4.17733473,134.53,134.45,9.06214615]
[1768781106508,4.17733473,134.57,134.51,9.06214615]
[1768781106709,7.42930272,134.61,134.53,9.06214615]
[1768781106910,7.42930272,134.61,134.5,4.14381385]
[1768781106911,9.06214615,134.63,134.5,4.14381385]
[1768781107111,11.60454803,134.64,134.57,9.06214615]
[1768781107411,11.60454803,134.64,134.47,37.11817339]
[1768781107412,9.06214615,134.59,134.47,4.14381385]
[1768781107590,9.06214615,134.51,134.43,11.58215366]
[1768781107791,9.06214615,134.5,134.41,18.59973456]
[1768781108098,4.17733473,134.5,134.44,9.06214615]
[1768781108296,4.17733473,134.57,134.43,4.14381385]
[1768781108498,11.60859349,134.57,134.46,4.14381385]
[1768781108690,4.17733473,134.64,134.53,9.06214615]
[1768781109031,4.17733473,134.64,134.51,0.22302713]
[1768781109032,7.4261102,134.66,134.55,4.14381385]
[1768781109538,7.4261102,134.66,134.51,9.28517328]
[1768781109539,9.06214615,134.58,134.51,9.28517328]
[1768781109687,30.16872043,134.66,134.57,9.06214615]
[1768781109887,4.17733473,134.73,134.64,9.06214615]
[1768781110104,9.06214615,134.69,134.6,4.14381385]
[1768781110341,9.06214615,134.63,134.49,5.34408856]
[1768781110591,4.17733473,134.67,134.52,4.14381385]
[1768781110897,4.17733473,134.54,134.4,4.14381385]
[1768781111105,9.06214615,134.53,134.43,4.14381385]
[1768781111412,4.17733473,134.58,134.46,4.14381385]
[1768781111595,9.06214615,134.58,134.5,9.06214615]
[1768781111803,4.17733473,134.6,134.5,9.06214615]
[1768781112000,7.4299725,134.59,134.5,9.06214615]
[1768781112193,4.17733473,134.58,134.48,7.43574988]
[1768781112509,9.06214615,134.57,134.45,4.14381385]
[1768781112716,9.06214615,134.55,134.45,4.14381385]
[1768781112895,4.17733473,134.56,134.47,7.4361688]
[1768781113093,9.06214615,134.5,134.41,22.74360171]
[1768781113313,4.17733473,134.52,134.45,7.43720256]
[1768781113515,5.34408856,134.56,134.38,22.72561283]
[1768781113516,5.34408856,134.56,134.44,4.14381385]
[1768781113815,16.2,134.75,134.56,4.14381385]
[1768781114015,9.06214615,134.68,134.6,13.20596]
[1768781114208,9.06214615,134.64,134.56,4.14381385]
[1768781114388,9.06214615,134.72,134.56,4.14381385]
[1768781114712,63.08445894,134.74,134.63,9.06214615]
[1768781114896,5.34408856,134.73,134.62,4.14381385]
[1768781115090,9.06214615,134.7,134.62,4.14381385]
[1768781115291,7.42170105,134.74,134.64,13.20596]
[1768781115513,7.42170105,134.74,134.67,9.06214615]
[1768781115712,9.06214615,134.79,134.71,9.06214615]
[1768781115913,25.96246569,134.81,134.67,4.14381385]
[1768781116096,9.06214615,134.73,134.63,4.14381385]
[1768781116297,9.06214615,134.68,134.64,4.14381385]
[1768781116613,9.06214615,134.66,134.55,4.14381385]
[1768781116817,0.12227038,134.68,134.55,4.14381385]
[1768781117020,63.07977735,134.75,134.62,4.14381385]
[1768781117314,63.07977735,134.75,134.53,37.23309858]
[1768781117315,5.34408856,134.74,134.65,4.14381385]
[1768781117515,25.97402596,134.75,134.65,4.14381385]
[1768781117689,9.06214615,134.72,134.65,4.14381385]
[1768781118021,16.48536462,134.72,134.65,11.57033554]
[1768781118205,9.06214615,134.75,134.68,4.14381385]
[1768781118513,0.2,134.82,134.72,4.14381385]
[1768781118704,0.2,134.82,134.76,9.06214615]
[1768781118904,0.2,134.82,134.68,5.34408856]
[1768781119101,0.2,134.82,134.76,9.06214615]